[Event "III GM Brena Baja-La Palma 2022"]
[Site "La Palma"]
[Date "2022.04.15"]
[Round "10.3"]
[White "Herrera Reyes, Jose Antonio"]
[Black "Zwirs, Nico"]
[Result "1-0"]
[ECO "B25"]
[WhiteElo "2319"]
[BlackElo "2461"]
[Annotator "TA"]
[PlyCount "119"]
[EventDate "2022.04.01"]
[EventType "tourn"]
[EventCountry "ESP"]
[SourceTitle "playchess.com"]
[Source "ChessBase"]
[SourceQuality "1"]
[TimeControl "5400+30"]

{[%evp 13,119,4,6,2,0,-10,-10,-14,-10,-7,0,-4,-18,-14,-19,-18,-26,-23,-14,-27,-12,-21,20,0,35,16,18,16,22,0,0,31,39,18,20,0,0,0,58,62,40,50,55,24,21,32,23,0,0,0,8,0,8,0,0,0,0,0,271,311,318,322,308,317,311,293,491,426,464,443,445,447,481,466,804,725,1055,990,1241,931,1139,1112,1581,1556,1480,1389,1606,1596,1606,1595,1528,1516,1430,1185,2467,1559,1795,1031,956,956,5840,775,5742,5734,29990,29991,29997,1383]} 1. e4 {[%emt 0:00:32]} c5 {[%emt 0:00:51]} 2. Nc3 {[%emt 0:01:08]} Nc6 {[%emt 0:01:37]} 3. g3 {[%emt 0:01:00]} d6 {[%emt 0:00:27]} 4. Bg2 {[%emt 0:00:06]} Nf6 {[%emt 0:00:25]} 5. Nge2 {[%emt 0:01:16]} g6 {[%emt 0:00:20]} 6. d3 {[%emt 0:00:57]} Bg7 {[%emt 0:00:12]} 7. h3 {[%emt 0:02:19]} Rb8 {[%emt 0:00:54]} 8. a4 {[%emt 0:02:17] B25: Closed Sicilian: 3 g3, lines without early Be3.} a6 {[%emt 0:00:08]} 9. Be3 {[%emt 0:00:30]} b5 {[%emt 0:09:14]} 10. axb5 {[%emt 0:01:14] The position is equal.} axb5 {[%emt 0:00:02]} 11. Qd2 {[%emt 0:05:32]} O-O {[%emt 0:05:19]} 12. Bh6 {[%emt 0:04:53]} b4 {[%emt 0:11:48]} 13. Nd5 {[%emt 0:02:16] [#]} Bxh6 $146 {[%emt 0:09:07]} ({Predecessor:} 13... e6 14. Bxg7 Kxg7 15. Nxf6 Qxf6 16. O-O Qxb2 17. e5 d5 18. d4 Nxd4 19. Nxd4 cxd4 {0-1 (27) Faridi,F (1848)-Golizadeh,A (2464) Teheran 2019}) 14. Qxh6 {[%emt 0:08:24]} e6 {[%emt 0:00:29]} 15. Ne3 {[%emt 0:00:36]} Nd4 {[%emt 0:07:46]} 16. h4 {[%emt 0:14:38][%cal Bh3h4,Bh4h5][%mdl 32]} Qe7 {[%emt 0:23:07]} (16... e5 $5 {[%cal Rf6g4]} 17. Qg5 Kg7 18. Nxd4 cxd4 $15) 17. h5 {[%emt 0:15:38]} Bb7 {[%emt 0:05:52]} 18. f4 {[%emt 0:16:46]} Ra8 {[%emt 0:00:53]} 19. Rxa8 {[%emt 0:00:51]} Rxa8 {[%emt 0:00:23]} 20. hxg6 {[%emt 0:04:20] Dancing on a razor blade.} fxg6 {[%emt 0:00:14]} 21. Kd2 {[%emt 0:03:05]} Nxe2 {[%emt 0:09:09]} (21... b3 $5 {[%cal Ra8a2]}) 22. Kxe2 {[%emt 0:00:08]} Nd7 {[%emt 0:07:02]} 23. Bh3 {[%emt 0:01:02][%cal Oh3e6]} Nf8 {[%emt 0:01:00]} 24. Ng4 {[%emt 0:00:33]} c4 {[%emt 0:00:29]} 25. Qg5 {[%emt 0:00:28]} cxd3+ {[%emt 0:00:45]} (25... Qg7 $11) 26. cxd3 $14 {[%emt 0:00:01]} Qxg5 {[%emt 0:03:55]} 27. fxg5 {[%emt 0:00:01]} Kf7 {[%emt 0:00:23]} 28. Rf1+ {[%emt 0:00:17]} Ke8 {[%emt 0:00:11]} 29. Nf6+ {[%emt 0:03:54]} Ke7 {[%emt 0:00:01]} 30. Ke3 {[%emt 0:00:30]} Ra5 {[%emt 0:00:26]} 31. Kf4 {[%emt 0:02:03]} h5 {[%emt 0:01:26]} 32. Rc1 {[%emt 0:01:06] Threatens to win with Rc7+.} Kd8 {[%emt 0:00:59] Inhibits Rc7.} 33. Rc4 {[%emt 0:01:12]} Bc8 {[%emt 0:00:14] And now ...e5+ would win.} 34. Bg2 {[%emt 0:02:31]} e5+ {[%emt 0:01:02]} 35. Ke3 {[%emt 0:00:01]} Ne6 $2 {[%emt 0:00:32][%mdl 8192] [#] Black is on the road to losing.} (35... b3 $11 {and Black has nothing to worry.}) 36. Rxc8+ $1 $18 {[%emt 0:00:16][%mdl 512]} Kxc8 {[%emt 0:00:01][%mdl 4096] Endgame KRN-KBN} 37. Bh3 {[%emt 0:00:07]} Kd8 {[%emt 0:00:10]} 38. Bxe6 {[%emt 0:00:02]} Ke7 {[%emt 0:00:09]} 39. Bc4 {[%emt 0:00:14]} b3 $2 {[%emt 0:00:20]} (39... Ra7 40. Nd5+ Ke8) 40. Nd5+ {[%emt 0:00:49]} Kf8 {[%emt 0:00:16]} 41. Nc3 {[%emt 0:01:31] Prevents Ra2.} Ra8 {[%emt 0:00:38]} 42. Kd2 {[%emt 0:02:03]} Ra7 {[%emt 0:01:53]} 43. Bxb3 {[%emt 0:01:05] Black must now prevent Bd5.} Rb7 {[%emt 0:00:06]} (43... Ra1 $142 44. Bd1 Ke8) 44. Kc2 {[%emt 0:00:04]} h4 {[%emt 0:00:11]} 45. gxh4 {[%emt 0:00:39]} Rh7 {[%emt 0:00:00]} 46. Nb5 {[%emt 0:02:18]} Ke7 {[%emt 0:00:20]} 47. Nc7 {[%emt 0:00:31]} Rxh4 {[%emt 0:00:06]} 48. Bd5 {[%emt 0:00:35]} Rg4 {[%emt 0:00:37]} 49. Ne6 {[%emt 0:00:01]} Kd7 {[%emt 0:00:09]} 50. Nf8+ {[%emt 0:00:22]} Kc7 {[%emt 0:00:04]} 51. Nxg6 {[%emt 0:00:06]} Rxg5 {[%emt 0:00:19]} 52. Ne7 {[%emt 0:00:23]} Kb6 {[%emt 0:00:04]} 53. Bc4 {[%emt 0:00:29]} Kc5 {[%emt 0:00:13]} 54. Kc3 {[%emt 0:00:16] aiming for Nd5.} Rg1 {[%emt 0:00:02]} 55. b4+ {[%emt 0:00:08]} Kb6 {[%emt 0:00:01]} 56. Nd5+ {[%emt 0:00:06]} Kc6 {[%emt 0:00:03]} 57. b5+ {[%emt 0:00:07]} (57. Ba6 $142 Rb1 58. b5+ Kc5 59. b6) 57... Kc5 {[%emt 0:00:08]} 58. b6 {[%emt 0:00:13][%cal Bb5b6,Bb6b7,Bb7a8][%mdl 32] Intending b7 and mate.} Ra1 {[%emt 0:00:54]} 59. b7 {[%emt 0:00:37]} Ra8 {[%emt 0:00:15]} 60. bxa8=R {[%emt 0:00:06] Weighted Error Value: White=0.09 (flawless) /Black=0.32} 1-0